Workbook

Sheet GC Location
B1: dd | C1: mm | D1: ss | F1: x (deg) | G1: x (rad) | H1: dd | I1: mm | J1: ss | L1: y (deg) | M1: y (rad) | N1: d(rad) | O1: d (mi) | P1: f | Q1: r | R1: w | S1: TC
A2: NF | F2: 0 | G2: =F2*PI()/180 -> 0 | L2: 0 | M2: =L2*PI()/180 -> 0 | S2: =SUM(S3:S5) -> 12,753.24
A3: Gainesville | B3: 82 | C3: 20 | D3: 11 | E3: W | F3: =(B3+C3/60+D3/3600) * IF(E3="W",-1,1) -> -82.33638889 | G3: =F3*PI()/180 -> -1.43704108 | H3: 29 | I3: 40 | J3: 27 | K3: N | L3: =(H3+I3/60+J3/3600) * IF(K3="S",-1,1) -> 29.67416667 | M3: =L3*PI()/180 -> 0.5179119111 | N3: =ACOS(SIN(M3)*SIN(M$2)+COS(M3)*COS(M$2)*COS(G$2 - G3)) -> 1.454667808 | O3: =N3*(3963.34 - 13.35*SIN((M$2 + M3)/2)) -> 5760.370249 | P3: 1 | Q3: 1.00 | R3: =P3*Q3 -> 1.00 | S3: =O3*R3 -> 5,760.37
A4: Baghdad | B4: 44 | C4: 22 | E4: E | F4: =(B4+C4/60+D4/3600) * IF(E4="W",-1,1) -> 44.36666667 | G4: =F4*PI()/180 -> 0.7743444115 | H4: 33 | I4: 14 | K4: N | L4: =(H4+I4/60+J4/3600) * IF(K4="S",-1,1) -> 33.23333333 | M4: =L4*PI()/180 -> 0.5800310881 | N4: =ACOS(SIN(M4)*SIN(M$2)+COS(M4)*COS(M$2)*COS(G$2 - G4)) -> 0.9298453943 | O4: =N4*(3963.34 - 13.35*SIN((M$2 + M4)/2)) -> 3681.74361 | P4: 1 | Q4: 1.00 | R4: =P4*Q4 -> 1.00 | S4: =O4*R4 -> 3,681.74
A5: Rio de Janeiro | B5: 43 | C5: 12 | E5: W | F5: =(B5+C5/60+D5/3600) * IF(E5="W",-1,1) -> -43.2 | G5: =F5*PI()/180 -> -0.7539822369 | H5: 22 | I5: 57 | K5: S | L5: =(H5+I5/60+J5/3600) * IF(K5="S",-1,1) -> -22.95 | M5: =L5*PI()/180 -> -0.4005530633 | N5: =ACOS(SIN(M5)*SIN(M$2)+COS(M5)*COS(M$2)*COS(G$2 - G5)) -> 0.8348788771 | O5: =N5*(3963.34 - 13.35*SIN((M$2 + M5)/2)) -> 3311.126165 | P5: 1 | Q5: 1.00 | R5: =P5*Q5 -> 1.00 | S5: =O5*R5 -> 3,311.13
